fUSD/lending_fUSD_20250402
["ID","MTS","AMOUNT","RATE_DAILY","PERIOD"]
[357007788,1743574237948,-5.1903516,0.00034027,2]
[357007790,1743574237960,-289.50701086,0.00034027,2]
[357007792,1743574237971,-705.30263754,0.00034027,2]
[357007794,1743574237980,-150.0,0.00034032,2]
[357007795,1743574237988,-150.0,0.00034034,2]
[357007797,1743574237998,-150.0,0.00034038,2]
[357007799,1743574238007,-150.0,0.0003404,2]
[357007801,1743574238019,-150.0,0.00034041,2]
[357007803,1743574238028,-150.0,0.00034044,2]
[357007805,1743574238038,-150.0,0.00034045,2]
[357007807,1743574238047,-976.58888174,0.00034045,2]
[357007809,1743574238056,-150.0,0.00034046,2]
[357007811,1743574238066,-150.0,0.00034048,2]
[357007813,1743574238075,-150.0,0.00034054,2]
[357007815,1743574238085,-150.0,0.00034054,2]
[357007817,1743574238097,-150.0,0.00034055,2]
[357007818,1743574238107,-150.0,0.00034056,2]
[357007820,1743574238117,-150.0,0.00034058,2]
[357007822,1743574238126,-150.0,0.00034058,2]
[357007824,1743574238135,-150.0,0.00034062,2]
[357007826,1743574238144,-150.0,0.00034064,2]
[357007828,1743574238154,-150.0,0.00034071,2]
[357007830,1743574238163,-150.0,0.00034073,2]
[357007832,1743574238172,-150.0,0.00034074,2]
[357007834,1743574238181,-150.0,0.00034074,2]
[357007836,1743574238191,-150.0,0.00034076,2]
[357007838,1743574238200,-150.0,0.00034078,2]
[357007840,1743574238209,-201.30200824,0.0003408,2]
[357007842,1743574238218,-150.0,0.00034088,2]
[357007844,1743574238227,-150.0,0.00034096,2]
[357007846,1743574238236,-150.0,0.00034096,2]
[357007848,1743574238246,-150.0,0.00034099,2]
[357007850,1743574238255,-150.0,0.000341,2]
[357007852,1743574238264,-150.0,0.00034102,2]
[357007854,1743574238273,-150.0,0.00034109,2]
[357007856,1743574238282,-150.0,0.00034111,2]
[357007857,1743574238291,-150.0,0.00034117,2]
[357007859,1743574238300,-150.0,0.00034117,2]
[357007861,1743574238310,-150.0,0.00034117,2]
[357007863,1743574238319,-150.0,0.00034118,2]
[357007865,1743574238328,-577.54990059,0.0003412,2]
[357007868,1743574238339,-422.45009941,0.0003412,2]
[357007870,1743574238350,-150.0,0.00034123,2]
[357007871,1743574238359,-150.0,0.00034124,2]
[357007873,1743574238368,-150.0,0.0003413,2]
[357007875,1743574238377,-69.12858893,0.00034133,2]
[357007877,1743574238388,-80.87141107,0.00034133,2]
[357007879,1743574238397,-150.0,0.00034135,2]
[357007881,1743574238407,-150.0,0.00034138,2]
[357007883,1743574238416,-150.0,0.00034141,2]
[357007885,1743574238425,-150.0,0.00034145,2]
[357007887,1743574238434,-150.0,0.00034147,2]
[357007889,1743574238443,-150.0,0.00034156,2]
[357007891,1743574238452,-150.0,0.0003416,2]
[357007893,1743574238462,-48.66587983,0.00034161,2]
[357007895,1743574238473,-101.33412017,0.00034161,2]
[357007897,1743574238482,-150.0,0.00034163,2]
[357007899,1743574238491,-150.0,0.00034166,2]
[357007901,1743574238500,-150.0,0.00034171,2]
[357007903,1743574238509,-150.0,0.00034172,2]
[357007905,1743574238518,-150.0,0.00034175,2]
[357007907,1743574238527,-224.52845138,0.00034177,2]
[357007909,1743574238536,-150.0,0.00034178,2]
[357007911,1743574238546,-65.74027353,0.0003418,2]
[357007913,1743574238557,-84.25972647,0.0003418,2]
[357007915,1743574238566,-150.0,0.00034182,2]
[357007917,1743574238575,-150.0,0.00034185,2]
[357007919,1743574238584,-628.06952981,0.00034185,2]
[357007921,1743574238594,-150.0,0.00034186,2]
[357007923,1743574238603,-150.0,0.00034188,2]
[357007925,1743574238612,-1000.0,0.00034189,2]
[357007927,1743574238621,-32.2612999,0.0003419,2]
[357007929,1743574238632,-117.7387001,0.0003419,2]
[357007931,1743574238641,-150.0,0.00034193,2]
[357007933,1743574238650,-150.0,0.00034194,2]
[357007935,1743574238660,-150.0,0.00034194,2]
[357007937,1743574238669,-150.0,0.00034195,2]
[357007939,1743574238678,-150.0,0.00034196,2]
[357007941,1743574238687,-150.0,0.00034206,2]
[357007943,1743574238697,-404.0,0.00034207,5]
[357007945,1743574238708,-150.0,0.00034207,2]
[357007947,1743574238718,-150.0,0.00034209,2]
[357007948,1743574238727,-150.0,0.00034211,2]
[357007950,1743574238736,-150.0,0.00034214,2]
[357007952,1743574238746,-150.0,0.00034215,2]
[357007954,1743574238755,-150.0,0.00034215,2]
[357007956,1743574238764,-1000.0,0.00034217,2]
[357007958,1743574238773,-150.0,0.00034219,2]
[357007960,1743574238783,-150.0,0.00034223,2]
[357007962,1743574238792,-150.0,0.00034223,2]
[357007964,1743574238801,-150.0,0.00034226,2]
[357007966,1743574238811,-150.0,0.00034227,2]
[357007968,1743574238820,-150.0,0.00034227,2]
[357007970,1743574238829,-150.0,0.00034228,2]
[357007972,1743574238838,-150.0,0.00034231,2]
[357007974,1743574238851,-150.0,0.00034231,2]
[357007976,1743574238860,-6150.8340567,0.00034231,2]
[357007978,1743574238869,-4295.0198503,0.00034231,2]
[357007980,1743574238878,-150.0,0.00034232,2]
[357007982,1743574238887,-150.0,0.00034234,2]
[357007984,1743574238897,-150.0,0.00034234,2]
[357007986,1743574238906,-150.0,0.00034236,2]
[357007988,1743574238916,-150.0,0.00034239,2]
[357007990,1743574238925,-150.0,0.00034239,2]
[357007992,1743574238935,-150.0,0.00034241,2]
[357007994,1743574238943,-150.0,0.00034242,2]
[357007996,1743574238952,-150.0,0.00034243,2]
[357007998,1743574238962,-13372.6722517,0.00034244,2]
[357008000,1743574238971,-952.50835518,0.00034244,2]
[357008002,1743574238983,-7874.57836545,0.00034244,2]
[357008004,1743574238991,-151.66,0.00034244,2]
[357008006,1743574239004,-151.66,0.00034244,2]
[357008008,1743574239014,-151.66,0.00034244,2]
[357008010,1743574239023,-150.0,0.00034244,2]
[357008012,1743574239033,-150.0,0.00034245,2]
[357008014,1743574239043,-552.805,0.00034247,30]
[357008016,1743574239052,-150.0,0.00034249,2]
[357008018,1743574239061,-150.0,0.00034249,2]
[357008020,1743574239071,-150.0,0.0003425,2]
[357008022,1743574239081,-150.0,0.00034253,2]
[357008024,1743574239090,-150.0,0.00034254,2]
[357008026,1743574239100,-48987.13008485,0.00034254,30]
[357008084,1743574239705,-150.0,0.00033981,2]
[357008085,1743574239714,-150.0,0.00033983,2]
[357008087,1743574239724,-150.0,0.0003399,2]
[357008089,1743574239733,-150.0,0.00033993,2]
[357008090,1743574239742,-150.0,0.00033993,2]
[357008093,1743574239751,-150.0,0.00033993,2]
[357008094,1743574239761,-150.0,0.00033995,2]
[357008097,1743574239770,-150.0,0.00033995,2]
[357008099,1743574239780,-150.0,0.00033999,2]
[357008100,1743574239789,-150.0,0.00034012,2]
[357008102,1743574239798,-150.0,0.00034014,2]
[357008105,1743574239807,-150.0,0.00034016,2]
[357008106,1743574239817,-150.0,0.00034017,2]
[357008108,1743574239826,-150.0,0.00034018,2]
[357008110,1743574239836,-150.0,0.00034022,2]
[357008112,1743574239846,-150.0,0.00034024,2]
[357008114,1743574239856,-150.0,0.00034028,2]
[357008116,1743574239865,-150.0,0.00034032,2]
[357008118,1743574239874,-150.0,0.00034033,2]
[357008120,1743574239884,-150.0,0.00034035,2]
[357008122,1743574239894,-150.0,0.00034039,2]
[357008124,1743574239903,-150.0,0.00034046,2]
[357008126,1743574239912,-150.0,0.00034046,2]
[357008128,1743574239922,-150.0,0.0003405,2]
[357008130,1743574239931,-150.0,0.00034052,2]
[357008131,1743574239940,-150.0,0.00034054,2]
[357008133,1743574239949,-150.0,0.00034054,2]
[357008135,1743574239958,-150.0,0.00034055,2]
[357008137,1743574239968,-150.0,0.00034088,2]
[357008139,1743574239977,-150.0,0.00034092,2]
[357008141,1743574239987,-150.0,0.00034092,2]
[357008143,1743574239996,-150.0,0.00034094,2]
[357008145,1743574240007,-150.0,0.00034095,2]
[357008147,1743574240019,-150.0,0.00034096,2]
[357008149,1743574240029,-150.0,0.00034098,2]
[357008151,1743574240040,-150.0,0.00034106,2]
[357008153,1743574240049,-150.0,0.00034109,2]
[357008155,1743574240058,-150.0,0.00034118,2]
[357008157,1743574240068,-150.0,0.00034122,2]
[357008159,1743574240077,-150.0,0.00034128,2]
[357008161,1743574240089,-150.0,0.00034131,2]
[357008163,1743574240099,-150.0,0.00034143,2]
[357008165,1743574240108,-150.0,0.00034144,2]
[357008167,1743574240117,-150.0,0.00034149,2]
[357008169,1743574240126,-150.0,0.00034152,2]
[357008170,1743574240135,-150.0,0.00034155,2]
[357008172,1743574240144,-150.0,0.00034165,2]
[357008174,1743574240154,-150.0,0.00034167,2]
[357008176,1743574240163,-150.0,0.00034172,2]
[357008188,1743574240171,-150.0,0.00034174,2]
[357008192,1743574240291,-150.0,0.0003418,2]
[357008194,1743574240300,-150.0,0.00034192,2]
[357008196,1743574240310,-150.0,0.00034199,2]
[357008197,1743574240319,-150.0,0.00034199,2]
[357008199,1743574240328,-150.0,0.00034206,2]
[357008201,1743574240339,-150.0,0.00034211,2]
[357008203,1743574240349,-150.0,0.00034214,2]
[357008205,1743574240359,-150.0,0.00034216,2]
[357008207,1743574240368,-150.0,0.00034216,2]
[357008209,1743574240377,-150.0,0.00034224,2]
[357008211,1743574240386,-150.0,0.00034234,2]
[357008213,1743574240395,-150.0,0.00034243,2]
[357008215,1743574240404,-150.0,0.00034246,2]
[357008217,1743574240413,-2003.44262181,0.00034254,30]
[357008220,1743574240434,-150.0,0.00034024,2]
[357008222,1743574240443,-150.0,0.0003414,2]
[357008224,1743574240452,-235.03832352,0.00034254,30]
[357008227,1743574240471,-150.0,0.0003398,2]
[357008229,1743574240481,-150.0,0.00034204,2]
[357008231,1743574240490,-2182.0,0.00034254,30]
[357008381,1743574242608,-150.0,0.00033998,2]
[357008384,1743574242618,-212.36821907,0.00034034,2]
[357008387,1743574242627,-150.0,0.00034083,2]
[357008390,1743574242636,-150.0,0.00034208,2]
[357008393,1743574242646,-150.0,0.00034219,2]
[357008395,1743574242655,-150.0,0.00034245,2]
[357008397,1743574242664,-2039.30178093,0.00034254,30]
[357008399,1743574242675,-523.96237975,0.00034254,30]
[357008402,1743574242687,-1795.66259684,0.00034254,30]
[357008407,1743574242724,-5093.01931879,0.00034254,30]
[357008409,1743574242735,-331.40167,0.00034254,30]
[357008415,1743574242783,-3797.68104727,0.00034254,30]
[357008686,1743574245483,-924.87105184,0.00034254,30]
[357008693,1743574245543,-16279.58931408,0.00034254,30]
[357008696,1743574245554,-710.81898075,0.00034254,30]
[357008702,1743574245606,-566.63058238,0.00022869,2]
[357008704,1743574245617,-551.36941762,0.00022869,2]
[357008706,1743574245626,-48.01833875,0.00034254,30]
[357008713,1743574245722,-1729.24609705,0.00034254,30]
[357008714,1743574245733,-38548.6271838,0.00034254,30]
[357008717,1743574245782,-2647.73328687,0.00034254,30]
[357009322,1743574268296,335.895803,7.945e-05,2]
[357009323,1743574279904,1196.3411171,0.00034258,60]
[357009325,1743575119979,461.39371957,9e-05,2]
[357009329,1743575399277,-212.70040544,0.000149,2]
[357009342,1743575431671,-489.26126568,0.000149,2]
[357009343,1743575431680,-17.30075116,0.000149,2]
[357009344,1743575431916,-255.99814618,0.000149,2]
[357009345,1743575431926,-454.57556211,0.000149,2]
[357009346,1743575432018,-3219.42177796,0.000149,2]
[357009347,1743575432028,-150.0,0.00014949,2]
[357009348,1743575432037,-503.05666869,0.00014973,2]
[357009349,1743575432046,-500.0,0.00014973,2]
[357009350,1743575432056,-386.8134353,0.00014999,2]
[357009351,1743575432065,-9223.49499986,0.00015,2]
[357009352,1743575432076,-49640.52334418,0.00015,2]
[357009353,1743575432087,-306.0,0.00015,2]
[357009354,1743575432098,-1158.5934276,0.00015,2]
[357009476,1743575437620,-49048.294304,0.00015,2]
[357009478,1743575437633,-8437.59313542,0.00015,2]
[357009479,1743575437645,-1650.43404456,0.00015,2]
[357009480,1743575437656,-684.19790739,0.00015,2]
[357009481,1743575437726,-3147.89525311,0.00015,2]
[357009482,1743575437738,-612.60000005,0.00015,2]
[357009483,1743575437813,-958.05224277,0.00015,2]
[357009484,1743575437824,-692.45525098,0.00015,2]
[357009485,1743575437835,-511.36323944,0.00015,2]
[357009486,1743575437847,-1011.85,0.00015,2]
[357009487,1743575437858,-25147.8772614,0.00015,2]
[357009488,1743575437869,-12430.14766108,0.00015,2]
[357009489,1743575437880,-3998.76075201,0.00015,2]
[357009490,1743575437891,-3701.24985,0.00015,2]
[357009492,1743575437902,-10168.99999985,0.00015,2]
[357009496,1743575437931,-1419.50043972,0.00015,2]
[357009498,1743575437942,-849.02319621,0.00015,2]
[357009673,1743575439831,-488.35408459,0.00015,2]
[357009717,1743575440238,-421.23661199,0.00015,2]
[357009719,1743575440249,-840.77658634,0.00015,2]
[357010074,1743575444176,-2325.28076204,0.00015,2]
[357010075,1743575444187,-4897.1909532,0.00015,2]
[357010076,1743575444198,-9289.25953684,0.00015,2]
[357010078,1743575446086,-21428.9977,0.000149,2]
[357010079,1743575446096,-6176.69190966,0.00015,2]
[357010080,1743575446108,-1612.86446988,0.00015,2]
[357010081,1743575446124,-8395.3,0.00015,2]
[357010082,1743575446136,-4219.11572371,0.00015,2]
[357010084,1743575446148,-31402.39687458,0.00015,2]
[357010085,1743575446159,-5727.067215,0.00015,2]
[357010086,1743575468334,335.895803,7.945e-05,2]
[357010090,1743575872104,152.53,0.00013699,2]
[357010092,1743576005834,150.0,0.00032,120]
[357010093,1743576084303,367.73674,0.00014825,2]
[357010094,1743576115175,528.7,0.00014451,2]
[357010095,1743576118351,14818.4919,0.000148,2]
[357010096,1743576127940,9459.867061,7.945e-05,2]
[357010099,1743576404393,200.0,0.00014825,2]
[357010100,1743576421454,222.54228004,0.0001485,2]
[357010101,1743576437118,-2375.94267137,0.000149,2]
[357010102,1743576482422,350.0,0.00014903,12]
[357010103,1743576482605,350.0,0.00014912,12]
[357010104,1743576601701,-150.0,0.00014899,2]
[357010105,1743576601744,-150.0,0.000149,2]
[357010106,1743576601790,-505.05972863,0.000149,2]
[357010107,1743576601838,-500.0,0.000149,2]
[357010108,1743576601883,-160.3611602,0.000149,2]
[357010109,1743576601928,-315.016,0.000149,2]
[357010110,1743576601970,-3904.9791,0.000149,2]
[357010111,1743576602011,-906.5324,0.000149,2]
[357010112,1743576602054,-450.88873465,0.000149,2]
[357010113,1743576602096,-1000.0,0.000149,2]
[357010114,1743576602139,-883.72649853,0.000149,2]
[357010115,1743576602184,-107.13460147,0.000149,2]
[357010116,1743576602227,-791.6828,0.000149,2]
[357010117,1743576602269,-151.28,0.000149,2]
[357010118,1743576602312,-2449.33156006,0.000149,2]
[357010119,1743576602602,-5427.13466048,0.000149,2]
[357010120,1743576602661,-3170.18570364,0.000149,2]
[357010121,1743576602974,350.0,0.000149,12]
[357010123,1743576631980,-13684.70568897,0.000149,2]
[357010124,1743576631992,-9113.3557443,0.000149,2]
[357010125,1743576632004,-5212.84645226,0.000149,2]
[357010126,1743576632018,-21500.07695035,0.000149,2]
[357010127,1743576632028,-821.6743,0.000149,2]
[357010128,1743576632038,-291.54269415,0.000149,2]
[357010129,1743576632048,-182.1992649,0.000149,2]
[357010130,1743576632057,-163.56398382,0.000149,2]
[357010131,1743576632066,-450.88873463,0.00014906,2]
[357010132,1743576632075,-450.88873463,0.00014912,2]
[357010133,1743576632085,-450.88873463,0.00014918,2]
[357010134,1743576632096,-450.88873463,0.00014924,2]
[357010135,1743576632106,-450.88873463,0.00014931,2]
[357010136,1743576632117,-450.88873463,0.00014937,2]
[357010137,1743576632127,-450.88873463,0.00014943,2]
[357010138,1743576632137,-450.88873463,0.00014949,2]
[357010139,1743576632150,-150.99,0.00014949,2]
[357010140,1743576632160,-150.99,0.00014949,2]
[357010141,1743576632169,-450.88873463,0.00014955,2]
[357010142,1743576632178,-165.478,0.00014973,2]
[357010143,1743576632187,-24713.65001469,0.0001499,2]
[357010144,1743576632200,-439.38098821,0.0001499,2]
[357010145,1743576632211,-291.5426941,0.00014991,2]
[357010146,1743576632222,-1000.0,0.00014999,2]
[357010147,1743576632232,-300.0,0.00014999,2]
[357010148,1743576632241,-303.50466767,0.00014999,2]
[357010149,1743576632251,-674.81387807,0.00014999,2]
[357010150,1743576632261,-88327.10624843,0.00015,2]
[357010151,1743576632273,-2388.76807046,0.00015,2]
[357010152,1743576632284,-6370.76523132,0.00015,2]
[357010153,1743576632295,-12006.54904664,0.00015,2]
[357010154,1743576632306,-393.20005812,0.00015,2]
[357010155,1743576632317,-2903.71306986,0.00015,2]
[357010156,1743576632329,-3807.81671501,0.00015,2]
[357010157,1743576632340,-2253.66982854,0.00015,2]
[357010158,1743576632351,-1128.68085537,0.00015,2]
[357010166,1743576637923,-1848.58418204,0.00015,2]
[357010167,1743576637935,-817.52,0.00015,2]
[357010168,1743576638064,-756.49072309,0.00015,2]
[357010169,1743576638075,-3597.64402018,0.00015,2]
[357010170,1743576638097,-14758.58794701,0.00015,2]
[357010171,1743576638109,-2617.23459891,0.00015,2]
[357010172,1743576638120,-1363.83747749,0.00015,2]
[357010173,1743576638156,-1540.92105376,0.00015,2]
[357010174,1743576638171,-8402.87019244,0.00015,2]
[357010175,1743576638186,-820.81208922,0.00015,2]
[357010368,1743576640242,-1771.96607913,0.00015,2]
[357010370,1743576640254,-1695.9605227,0.00015,2]
[357010373,1743576640265,-500.0,0.00015,2]
[357010385,1743576640383,-7817.01558886,0.00015,2]
[357010387,1743576640395,-798.52623198,0.00015,2]
[357010389,1743576640406,-900.0,0.00015,2]
[357010391,1743576640425,-1030.82396,0.00015,2]
[357010407,1743576640568,-4000.0,0.00015,2]
[357010409,1743576640579,-1731.98,0.00015,2]
[357010411,1743576640591,-1471.41687037,0.00015,2]
[357010807,1743576644409,-500.0,0.000149,2]
[357010811,1743576644421,-455.69710661,0.000149,2]
[357010814,1743576644433,-356.31529339,0.000149,2]
[357010817,1743576644443,-6379.26855533,0.00015,2]
[357010821,1743576644454,-1986.82732598,0.00015,2]
[357010847,1743576644572,-1352.80312462,0.00015,2]
[357010975,1743576645938,-335.67813972,0.00015,2]
[357010998,1743576646203,-299.99,0.00015,2]
[357011003,1743576646249,-2197.00000002,0.00015,2]
[357011005,1743576646264,-9068.4486635,0.00015,2]
[357011008,1743576646291,-1652.6108434,0.00015,2]
[357011010,1743576646303,-7500.0,0.00015,2]
[357011012,1743576646315,-9007.32843651,0.00015,2]
[357011014,1743576646328,-36435.253311,0.00015,2]
[357011016,1743576646339,-52183.49804259,0.00015,2]
[357011859,1743576654889,-86100.0,0.00015,2]
[357012492,1743576724869,219.13346587,0.00034258,30]
[357012493,1743576737882,520.233519,0.00014825,2]
[357012495,1743576817231,335.0,0.00032,120]
[357012497,1743576987346,260.21967204,0.000148,2]
[357012498,1743577040467,254.14,0.00019258,30]
[357012499,1743577307853,157.24,0.00027979,120]
[357012501,1743577653157,-167.42,0.0001486,2]
[357012502,1743577653178,-150.0,0.00014875,2]
[357012503,1743577653198,-150.0,0.0001489,2]
[357012504,1743577653218,-218.94542471,0.00014899,2]
[357012505,1743577653240,-150.0,0.00014899,2]
[357012506,1743577653261,-300.0,0.00014899,2]
[357012507,1743577653283,-725.02246974,0.000149,2]
[357012508,1743577653303,-191.39755115,0.000149,2]
[357012509,1743577653323,-9320.46205869,0.000149,2]
[357012510,1743577745351,-150.0,0.000149,2]
[357012511,1743577745395,-9091.73427925,0.000149,2]
[357012512,1743577745456,-8636.19179895,0.000149,2]
[357012513,1743577770445,-7800.58385837,0.000149,2]
[357012514,1743577770569,-8261.07560474,0.000149,2]
[357012515,1743577770610,-362.892,0.000149,2]
[357012516,1743577770650,-185.77511815,0.000149,2]
[357012517,1743577770695,-789.55007792,0.000149,2]
[357012518,1743577795361,-348.48536102,0.000149,2]
[357012519,1743577795405,-161.6165272,0.000149,2]
[357012530,1743577832061,-359.74283013,0.000149,2]
[357012531,1743577832070,-163.56398382,0.000149,2]
[357012532,1743577832080,-3038.4298957,0.000149,2]
[357012533,1743577832090,-150.0,0.00014906,2]
[357012534,1743577832100,-1138.03543893,0.00014912,2]
[357012535,1743577832110,-521.35935726,0.00014912,2]
[357012536,1743577832125,-266.92003329,0.00014924,2]
[357012537,1743577832137,-544.0998858,0.00014924,2]
[357012538,1743577832149,-327.01551984,0.00014924,2]
[357012539,1743577832159,-70.07960409,0.00014924,2]
[357012540,1743577832171,-451.27975317,0.00014924,2]
[357012541,1743577832181,-1138.03543893,0.00014936,2]
[357012542,1743577832191,-283.36497794,0.00014936,2]
[357012543,1743577832203,-237.99437932,0.00014936,2]
[357012544,1743577832212,-203.77774012,0.00014948,2]
[357012545,1743577832223,-934.25769881,0.00014948,2]
[357012546,1743577832232,-521.35935726,0.00014948,2]
[357012547,1743577832242,-1138.03543893,0.0001496,2]
[357012548,1743577832251,-521.35935726,0.0001496,2]
[357012549,1743577832260,-1138.03543893,0.00014972,2]
[357012550,1743577832269,-521.35935726,0.00014972,2]
[357012551,1743577832280,-500.0,0.00014973,2]
[357012552,1743577832289,-500.40253572,0.00014973,2]
[357012553,1743577832299,-164.81289151,0.00014973,2]
[357012554,1743577832308,-500.0,0.00014973,2]
[357012555,1743577832317,-1138.03543893,0.00014984,2]
[357012556,1743577832326,-521.35935726,0.00014984,2]
[357012557,1743577832336,-12049.91,0.00014984,2]
[357012558,1743577832345,-1138.03543893,0.00014996,2]
[357012559,1743577832354,-521.35935726,0.00014996,2]
[357012560,1743577832363,-9999.99,0.00014996,2]
[357012561,1743577832373,-9999.99,0.00014996,2]
[357012562,1743577832382,-1005.4980358,0.00014998,2]
[357012563,1743577832392,-308.83161985,0.00014999,2]
[357012564,1743577832401,-1072048.00687897,0.00015,2]
[357012565,1743577832413,-486730.57829655,0.00015,2]
[357012566,1743577832424,-3300.000006,0.00015,2]
[357012567,1743577832435,-3682.87300828,0.00015,2]
[357012568,1743577832446,-3925.50276661,0.00015,2]
[357012569,1743577832458,-2618.47505367,0.00015,2]
[357012570,1743577832469,-2528.35218345,0.00015,2]
[357012571,1743577832480,-796.69487304,0.00015,2]
[357012573,1743577832492,-6856.88166444,0.00015,2]
[357012575,1743577832503,-328.01300429,0.00015,2]
[357012577,1743577832519,-686.38615094,0.00015,2]
[357012580,1743577832530,-35372.87119657,0.00015,2]
[357012582,1743577832541,-1361.37018611,0.00015,2]
[357012584,1743577832552,-429.62856857,0.00015,2]
[357012587,1743577832568,-3961.95512933,0.00015,2]
[357012732,1743577838154,-27.36225812,0.00015,2]
[357012733,1743577838167,-279.7009248,0.00015,2]
[357012734,1743577838179,-642.01814276,0.00015,2]
[357012735,1743577838190,-284.34989148,0.00015,2]
[357012736,1743577838202,-1249.72069482,0.00015,2]
[357012738,1743577838412,-1279.60639908,0.00015,2]
[357012739,1743577838424,-86143.68939692,0.00015,2]
[357012741,1743577838435,-73824.35431133,0.00015,2]
[357012990,1743577840359,-20898.99921264,0.00015,2]
[357013043,1743577840628,-2342.47585922,0.00015,2]
[357013052,1743577840674,-199576.1354934,0.00015,2]
[357013055,1743577840686,-5300.15910941,0.00015,2]
[357013445,1743577843339,-1866.55401414,0.00015,2]
[357013446,1743577843351,-3504.14654284,0.00015,2]
[357013447,1743577843362,-294.49025174,0.00015,2]
[357013448,1743577843374,-3723.83319058,0.00015,2]
[357013449,1743577843385,-4656.8773694,0.00015,2]
[357013450,1743577843465,-0.8846844,0.00015,2]
[357013451,1743577843485,-295.51106762,0.00015,2]
[357013456,1743577844697,-1100.0,0.00015,2]
[357013457,1743577844717,-101424.34993951,0.00015,2]
[357013458,1743577846064,-379.89623438,0.00015,2]
[357013459,1743577846076,-726.52366915,0.00015,2]
[357013460,1743577846087,-572.65026246,0.00015,2]
[357013461,1743577846100,-517.300003,0.00015,2]
[357013462,1743577846111,-1262.3020784,0.00015,2]
[357013463,1743577846124,-2169.16492796,0.00015,2]
[357013464,1743577846136,-881.9119752,0.00015,2]
[357013465,1743577846147,-5722.32155505,0.00015,2]
[357013466,1743577846158,-21814.51381302,0.00015,2]
[357013467,1743577846175,-769.686283,0.00015,2]
[357013468,1743577846232,-4672.00804507,0.00015,2]
[357013469,1743577846243,-470.22347517,0.00015,2]
[357013470,1743577846285,-387.21800114,0.00015,2]
[357013471,1743577846298,-51405.70367748,0.00015,2]
[357013472,1743577846310,-2517.20327841,0.00015,2]
[357013473,1743577846332,-335.30570427,0.00015,2]
[357013474,1743577846344,-506.800618,0.00015,2]
[357013475,1743577846363,-44088.07906197,0.00015,2]
[357013476,1743577846388,-4432.66433004,0.00015,2]
[357013480,1743577868205,15652.359585,7.945e-05,2]
[357013481,1743577942724,152.91151117,0.00014524,2]
[357013482,1743577981442,151.28,0.000148,2]
[357013484,1743578168304,249.60012503,0.00014726,2]
[357013485,1743578221350,12606.26198509,0.0001485,2]
[357013486,1743578310866,677.419,0.000147,2]
[357013487,1743578310901,158.003,0.000147,2]
[357013488,1743578362897,-191.56,0.00032932,120]
[357013489,1743578362926,-587503.4559231,0.00034254,30]
[357013490,1743578362950,-341.60321517,0.00034254,30]
[357013491,1743578362976,-772.0,0.0003426,30]
[357013492,1743578363002,-190.33,0.00035,120]
[357013493,1743578363026,-8837.29109866,0.0003511,30]
[357013494,1743578363052,-4022.35882761,0.000372,103]
[357013495,1743578363078,-4022.35882761,0.000372,103]
[357013496,1743578363103,-191.56,0.0003741,120]
[357013497,1743578363128,-677.419,0.00038525,52]
[357013498,1743578363157,-500.0,0.00040763,30]
[357013499,1743578363183,-500.0,0.00040936,30]
[357013500,1743578363207,-153.27,0.00041,120]
[357013501,1743578363233,-500.0,0.00041047,30]
[357013502,1743578363259,-4022.35882761,0.00041125,120]
[357013503,1743578363288,-500.0,0.00041276,30]
[357013504,1743578363315,-500.0,0.00041301,30]